[Event "Titled Tuesday Blitz June 14 Early 2022"]
[White "Janaszak, Dawid"]
[Black "Oparin, Grigoriy"]
[WhiteFideId "1119206"]
[BlackFideId "24125890"]
[WhiteElo "2199"]
[BlackElo "2639"]
[Result "0-1"]
[Round "03"]
[TimeControl "180+1"]
[Date "2022.06.14"]
[WhiteClock "0:00:01"]
[BlackClock "0:01:26"]

1. e4 {[%clk 0:03:00]}  c5 {[%clk 0:02:56]} 2. Nc3 {[%clk 0:03:00]}  g6 {[%clk 0:02:52]} 3. Bc4 {[%clk 0:02:57]}  Bg7 {[%clk 0:02:52]} 4. h4 {[%clk 0:02:58]}  Nf6 {[%clk 0:02:49]} 5. e5 {[%clk 0:02:49]}  Nh5 {[%clk 0:02:47]} 6. Qf3 {[%clk 0:02:33]}  d5 {[%clk 0:02:17]} 7. Bb5+ {[%clk 0:01:45]}  Bd7 {[%clk 0:02:17]} 8. g4 {[%clk 0:01:45]}  d4 {[%clk 0:02:17]} 9. Qxb7 {[%clk 0:01:13]}  dxc3 {[%clk 0:02:15]} 10. gxh5 {[%clk 0:01:06]}  Bxe5 {[%clk 0:02:10]} 11. dxc3 {[%clk 0:00:57]}  O-O {[%clk 0:02:04]} 12. Bh6 {[%clk 0:00:48]}  Bxb5 {[%clk 0:02:04]} 13. Qxb5 {[%clk 0:00:43]}  Qd5 {[%clk 0:02:05]} 14. Rh3 {[%clk 0:00:26]}  Rc8 {[%clk 0:01:59]} 15. Rd3 {[%clk 0:00:21]}  Qg2 {[%clk 0:01:54]} 16. O-O-O {[%clk 0:00:19]}  Bd6 {[%clk 0:01:48]} 17. Nf3 {[%clk 0:00:13]}  Nc6 {[%clk 0:01:47]} 18. hxg6 {[%clk 0:00:13]}  hxg6 {[%clk 0:01:47]} 19. Rg1 {[%clk 0:00:08]}  Qxf2 {[%clk 0:01:43]} 20. Be3 {[%clk 0:00:07]}  Qxf3 {[%clk 0:01:42]} 21. h5 {[%clk 0:00:06]}  Ne5 {[%clk 0:01:37]} 22. hxg6 {[%clk 0:00:03]}  Rab8 {[%clk 0:01:28]} 23. gxf7+ {[%clk 0:00:02]}  Kxf7 {[%clk 0:01:29]} 24. Qa6 {[%clk 0:00:01]}  Rc6 {[%clk 0:01:26]} 0-1


[Site "https://www.chess.com"]

[Event "Titled Tuesday Blitz June 14 Early 2022"]
[White "Kosakowski, Jakub"]
[Black "Taspinar, Yanki"]
[WhiteFideId "1185080"]
[BlackFideId "34561188"]
[WhiteElo "2476"]
[BlackElo "1518"]
[Result "1-0"]
[Round "03"]
[TimeControl "180+1"]
[Date "2022.06.14"]
[WhiteClock "0:01:05"]
[BlackClock "0:00:05"]

1. e4 {[%clk 0:03:00]}  e5 {[%clk 0:02:59]} 2. Nf3 {[%clk 0:03:00]}  Nc6 {[%clk 0:03:00]} 3. Bb5 {[%clk 0:03:00]}  a6 {[%clk 0:03:00]} 4. Ba4 {[%clk 0:03:00]}  Nf6 {[%clk 0:03:01]} 5. O-O {[%clk 0:03:01]}  Be7 {[%clk 0:03:01]} 6. Re1 {[%clk 0:03:01]}  b5 {[%clk 0:03:01]} 7. Bb3 {[%clk 0:03:02]}  d6 {[%clk 0:03:01]} 8. c3 {[%clk 0:03:02]}  O-O {[%clk 0:03:01]} 9. h3 {[%clk 0:03:03]}  Na5 {[%clk 0:03:01]} 10. Bc2 {[%clk 0:03:03]}  c5 {[%clk 0:03:01]} 11. d4 {[%clk 0:03:04]}  Nd7 {[%clk 0:03:01]} 12. Nbd2 {[%clk 0:03:01]}  exd4 {[%clk 0:03:01]} 13. cxd4 {[%clk 0:03:02]}  Nc6 {[%clk 0:03:02]} 14. d5 {[%clk 0:03:01]}  Nce5 {[%clk 0:03:02]} 15. a4 {[%clk 0:03:02]}  Rb8 {[%clk 0:02:54]} 16. axb5 {[%clk 0:03:01]}  axb5 {[%clk 0:02:54]} 17. Nxe5 {[%clk 0:03:01]}  Nxe5 {[%clk 0:02:55]} 18. f4 {[%clk 0:03:01]}  Ng6 {[%clk 0:02:55]} 19. Nf3 {[%clk 0:03:02]}  Bh4 {[%clk 0:02:53]} 20. Rf1 {[%clk 0:03:02]}  Bg3 {[%clk 0:02:16]} 21. f5 {[%clk 0:02:59]}  Ne5 {[%clk 0:02:16]} 22. Ng5 {[%clk 0:02:59]}  h6 {[%clk 0:02:16]} 23. f6 {[%clk 0:02:53]}  gxf6 {[%clk 0:02:17]} 24. Nf3 {[%clk 0:02:51]}  Kg7 {[%clk 0:02:07]} 25. Nxe5 {[%clk 0:01:53]}  Bxe5 {[%clk 0:02:08]} 26. Qh5 {[%clk 0:01:53]}  Rh8 {[%clk 0:02:08]} 27. Bf4 {[%clk 0:01:52]}  Qe7 {[%clk 0:01:56]} 28. Ra3 {[%clk 0:01:49]}  Bxf4 {[%clk 0:01:34]} 29. Rxf4 {[%clk 0:01:48]}  Qe5 {[%clk 0:01:35]} 30. Rg3+ {[%clk 0:01:31]}  Kf8 {[%clk 0:01:35]} 31. Qh4 {[%clk 0:01:31]}  Ke7 {[%clk 0:01:35]} 32. Rgf3 {[%clk 0:01:31]}  Qg5 {[%clk 0:01:28]} 33. Qf2 {[%clk 0:01:30]}  f5 {[%clk 0:01:24]} 34. e5 {[%clk 0:01:21]}  dxe5 {[%clk 0:00:56]} 35. Qxc5+ {[%clk 0:01:16]}  Ke8 {[%clk 0:00:56]} 36. Qd6 {[%clk 0:01:14]}  exf4 {[%clk 0:00:17]} 37. Qxb8 {[%clk 0:01:14]}  Kd8 {[%clk 0:00:12]} 38. Qd6+ {[%clk 0:01:04]}  Bd7 {[%clk 0:00:10]} 39. Ra3 {[%clk 0:01:04]}  Kc8 {[%clk 0:00:05]} 40. Ra8+ {[%clk 0:01:03]}  Kb7 {[%clk 0:00:05]} 41. Qa6+ {[%clk 0:01:04]}  Kc7 {[%clk 0:00:05]} 42. d6# {[%clk 0:01:05]} 1-0


[Site "https://www.chess.com"]

[Event "Titled Tuesday Blitz June 14 Early 2022"]
[White "Kucuksari, Kaan"]
[Black "Bharath Subramaniyam H"]
[WhiteFideId "6380166"]
[BlackFideId "46634827"]
[WhiteElo "2305"]
[BlackElo "2242"]
[Result "0-1"]
[Round "03"]
[TimeControl "180+1"]
[Date "2022.06.14"]
[WhiteClock "0:00:08"]
[BlackClock "0:00:09"]

1. d4 {[%clk 0:03:00]}  Nf6 {[%clk 0:02:59]} 2. c4 {[%clk 0:03:01]}  e6 {[%clk 0:02:58]} 3. Nf3 {[%clk 0:03:01]}  c5 {[%clk 0:02:59]} 4. d5 {[%clk 0:03:01]}  d6 {[%clk 0:03:00]} 5. Nc3 {[%clk 0:03:00]}  exd5 {[%clk 0:03:00]} 6. cxd5 {[%clk 0:03:01]}  g6 {[%clk 0:03:01]} 7. Bf4 {[%clk 0:03:01]}  a6 {[%clk 0:03:00]} 8. a4 {[%clk 0:03:01]}  Bg7 {[%clk 0:03:00]} 9. h3 {[%clk 0:03:01]}  O-O {[%clk 0:03:01]} 10. e3 {[%clk 0:03:02]}  Qe7 {[%clk 0:03:01]} 11. Nd2 {[%clk 0:03:00]}  Nbd7 {[%clk 0:03:00]} 12. Be2 {[%clk 0:03:00]}  Ne5 {[%clk 0:03:00]} 13. O-O {[%clk 0:02:59]}  Rb8 {[%clk 0:03:00]} 14. Bg3 {[%clk 0:02:59]}  Ne8 {[%clk 0:02:59]} 15. Re1 {[%clk 0:02:45]}  Nc7 {[%clk 0:02:58]} 16. f4 {[%clk 0:02:43]}  Nd7 {[%clk 0:02:53]} 17. e4 {[%clk 0:02:36]}  b5 {[%clk 0:02:50]} 18. axb5 {[%clk 0:02:37]}  Nxb5 {[%clk 0:02:46]} 19. Bxb5 {[%clk 0:02:20]}  axb5 {[%clk 0:02:46]} 20. e5 {[%clk 0:02:20]}  b4 {[%clk 0:02:44]} 21. Nce4 {[%clk 0:02:09]}  dxe5 {[%clk 0:02:42]} 22. Nc4 {[%clk 0:02:08]}  f5 {[%clk 0:02:38]} 23. Ng5 {[%clk 0:01:37]}  e4 {[%clk 0:02:28]} 24. d6 {[%clk 0:01:36]}  Qf6 {[%clk 0:02:20]} 25. Qd5+ {[%clk 0:01:33]}  Kh8 {[%clk 0:02:20]} 26. Red1 {[%clk 0:00:51]}  h6 {[%clk 0:02:12]} 27. Ne6 {[%clk 0:00:45]}  Nb6 {[%clk 0:01:40]} 28. Nxb6 {[%clk 0:00:32]}  Bxe6 {[%clk 0:01:40]} 29. Qxc5 {[%clk 0:00:32]}  Qxb2 {[%clk 0:01:41]} 30. Ra7 {[%clk 0:00:23]}  Qc3 {[%clk 0:01:35]} 31. Bf2 {[%clk 0:00:20]}  b3 {[%clk 0:01:22]} 32. Re7 {[%clk 0:00:16]}  Qxc5 {[%clk 0:00:54]} 33. Bxc5 {[%clk 0:00:17]}  Bg8 {[%clk 0:00:54]} 34. d7 {[%clk 0:00:06]}  Rfd8 {[%clk 0:00:54]} 35. Nd5 {[%clk 0:00:02]}  Bxd5 {[%clk 0:00:51]} 36. Bd6 {[%clk 0:00:03]}  Rb7 {[%clk 0:00:48]} 37. Re8+ {[%clk 0:00:03]}  Kh7 {[%clk 0:00:42]} 38. Rxd8 {[%clk 0:00:04]}  b2 {[%clk 0:00:39]} 39. Rh8+ {[%clk 0:00:04]}  Bxh8 {[%clk 0:00:37]} 40. d8=Q {[%clk 0:00:05]}  b1=Q {[%clk 0:00:27]} 41. Rxb1 {[%clk 0:00:05]}  Rxb1+ {[%clk 0:00:28]} 42. Kh2 {[%clk 0:00:06]}  Rb7 {[%clk 0:00:26]} 43. Be5 {[%clk 0:00:07]}  Bg8 {[%clk 0:00:20]} 44. Bxh8 {[%clk 0:00:06]}  Kxh8 {[%clk 0:00:21]} 45. Qf6+ {[%clk 0:00:06]}  Kh7 {[%clk 0:00:21]} 46. Qe5 {[%clk 0:00:05]}  Rf7 {[%clk 0:00:20]} 47. Kg3 {[%clk 0:00:05]}  Rf8 {[%clk 0:00:20]} 48. Qe7+ {[%clk 0:00:05]}  Rf7 {[%clk 0:00:20]} 49. Qe8 {[%clk 0:00:06]}  Rb7 {[%clk 0:00:19]} 50. Kf2 {[%clk 0:00:05]}  Bf7 {[%clk 0:00:19]} 51. Qe5 {[%clk 0:00:05]}  Kg8 {[%clk 0:00:18]} 52. g4 {[%clk 0:00:05]}  fxg4 {[%clk 0:00:14]} 53. hxg4 {[%clk 0:00:06]}  Rd7 {[%clk 0:00:05]} 54. Qxe4 {[%clk 0:00:05]}  Rd8 {[%clk 0:00:06]} 55. Qe7 {[%clk 0:00:04]}  Re8 {[%clk 0:00:06]} 56. Qf6 {[%clk 0:00:05]}  Re6 {[%clk 0:00:06]} 57. Qd4 {[%clk 0:00:05]}  Re8 {[%clk 0:00:05]} 58. Kg3 {[%clk 0:00:05]}  Rc8 {[%clk 0:00:04]} 59. Qb4 {[%clk 0:00:04]}  Rc4 {[%clk 0:00:04]} 60. Qe7 {[%clk 0:00:04]}  Kg7 {[%clk 0:00:03]} 61. Qe5+ {[%clk 0:00:04]}  Kg8 {[%clk 0:00:03]} 62. Qf6 {[%clk 0:00:05]}  Re4 {[%clk 0:00:03]} 63. Kf3 {[%clk 0:00:04]}  Re6 {[%clk 0:00:03]} 64. Qb2 {[%clk 0:00:02]}  Kh7 {[%clk 0:00:03]} 65. Kg3 {[%clk 0:00:02]}  Kg8 {[%clk 0:00:03]} 66. f5 {[%clk 0:00:02]}  gxf5 {[%clk 0:00:03]} 67. gxf5 {[%clk 0:00:03]}  Re4 {[%clk 0:00:04]} 68. Qb8+ {[%clk 0:00:03]}  Kg7 {[%clk 0:00:05]} 69. Qd6 {[%clk 0:00:03]}  h5 {[%clk 0:00:04]} 70. Qc5 {[%clk 0:00:02]}  Rg4+ {[%clk 0:00:05]} 71. Kh3 {[%clk 0:00:02]}  Kf6 {[%clk 0:00:05]} 72. Qc3+ {[%clk 0:00:03]}  Kxf5 {[%clk 0:00:05]} 73. Qf3+ {[%clk 0:00:04]}  Kg6 {[%clk 0:00:06]} 74. Qf2 {[%clk 0:00:04]}  Be6 {[%clk 0:00:06]} 75. Qe3 {[%clk 0:00:04]}  Re4+ {[%clk 0:00:06]} 76. Kh2 {[%clk 0:00:05]}  Rxe3 {[%clk 0:00:07]} 77. Kg2 {[%clk 0:00:05]}  Kg5 {[%clk 0:00:07]} 78. Kf2 {[%clk 0:00:06]}  Ra3 {[%clk 0:00:07]} 79. Kg2 {[%clk 0:00:07]}  h4 {[%clk 0:00:07]} 80. Kh2 {[%clk 0:00:08]}  h3 {[%clk 0:00:08]} 81. Kh1 {[%clk 0:00:08]}  Kh4 {[%clk 0:00:08]} 82. Kg1 {[%clk 0:00:08]}  Ra1+ {[%clk 0:00:08]} 83. Kf2 {[%clk 0:00:08]}  h2 {[%clk 0:00:09]} 0-1


[Site "https://www.chess.com"]

[Event "Titled Tuesday Blitz June 14 Early 2022"]
[White "Lamaze, Simon"]
[Black "Molina, Roberto Junio Brito"]
[WhiteFideId "36069264"]
[BlackFideId "2109450"]
[WhiteElo "2090"]
[BlackElo "2432"]
[Result "1-0"]
[Round "03"]
[TimeControl "180+1"]
[Date "2022.06.14"]
[WhiteClock "0:00:45"]
[BlackClock "0:00:12"]

1. d4 {[%clk 0:03:00]}  d5 {[%clk 0:02:59]} 2. c4 {[%clk 0:03:00]}  c6 {[%clk 0:02:59]} 3. cxd5 {[%clk 0:03:00]}  cxd5 {[%clk 0:02:58]} 4. Bf4 {[%clk 0:03:01]}  Nf6 {[%clk 0:02:57]} 5. Nc3 {[%clk 0:03:00]}  Qb6 {[%clk 0:02:56]} 6. Qd2 {[%clk 0:02:58]}  Nc6 {[%clk 0:02:55]} 7. e3 {[%clk 0:02:58]}  e6 {[%clk 0:02:53]} 8. Nf3 {[%clk 0:02:54]}  Ne4 {[%clk 0:02:49]} 9. Qc2 {[%clk 0:02:48]}  Nxc3 {[%clk 0:02:49]} 10. bxc3 {[%clk 0:02:48]}  Be7 {[%clk 0:02:45]} 11. Bd3 {[%clk 0:02:47]}  h6 {[%clk 0:02:45]} 12. O-O {[%clk 0:02:47]}  O-O {[%clk 0:02:43]} 13. Rfb1 {[%clk 0:02:45]}  Qd8 {[%clk 0:02:42]} 14. Qd2 {[%clk 0:02:42]}  b6 {[%clk 0:02:35]} 15. c4 {[%clk 0:02:37]}  dxc4 {[%clk 0:02:24]} 16. Bxc4 {[%clk 0:02:35]}  Bb7 {[%clk 0:02:24]} 17. Rd1 {[%clk 0:02:35]}  Rc8 {[%clk 0:02:19]} 18. Rac1 {[%clk 0:02:32]}  Ba3 {[%clk 0:02:04]} 19. Rb1 {[%clk 0:02:27]}  Bd6 {[%clk 0:01:59]} 20. Bg3 {[%clk 0:02:19]}  Na5 {[%clk 0:01:55]} 21. Bd3 {[%clk 0:02:15]}  Bxf3 {[%clk 0:01:49]} 22. gxf3 {[%clk 0:02:15]}  Bxg3 {[%clk 0:01:41]} 23. hxg3 {[%clk 0:02:14]}  Qf6 {[%clk 0:01:30]} 24. Kg2 {[%clk 0:02:13]}  Rfd8 {[%clk 0:01:29]} 25. Qe2 {[%clk 0:02:11]}  e5 {[%clk 0:01:25]} 26. dxe5 {[%clk 0:02:11]}  Qxe5 {[%clk 0:01:24]} 27. Rbc1 {[%clk 0:02:11]}  Rxc1 {[%clk 0:01:20]} 28. Rxc1 {[%clk 0:02:11]}  Nb7 {[%clk 0:01:16]} 29. Rd1 {[%clk 0:01:56]}  Kf8 {[%clk 0:01:09]} 30. Ba6 {[%clk 0:01:51]}  Rxd1 {[%clk 0:01:01]} 31. Qxd1 {[%clk 0:01:51]}  Qd6 {[%clk 0:00:38]} 32. Qc2 {[%clk 0:01:45]}  Nc5 {[%clk 0:00:37]} 33. Bc4 {[%clk 0:01:46]}  g6 {[%clk 0:00:37]} 34. Qc3 {[%clk 0:01:43]}  h5 {[%clk 0:00:34]} 35. Qh8+ {[%clk 0:01:42]}  Ke7 {[%clk 0:00:35]} 36. Qa8 {[%clk 0:01:40]}  Qc7 {[%clk 0:00:34]} 37. Qd5 {[%clk 0:01:37]}  Ne6 {[%clk 0:00:34]} 38. Bb3 {[%clk 0:01:36]}  Qd6 {[%clk 0:00:34]} 39. Qb7+ {[%clk 0:01:35]}  Qd7 {[%clk 0:00:34]} 40. Qa8 {[%clk 0:01:34]}  Nc5 {[%clk 0:00:34]} 41. Bc4 {[%clk 0:01:31]}  b5 {[%clk 0:00:34]} 42. Bf1 {[%clk 0:01:27]}  a6 {[%clk 0:00:34]} 43. Qb8 {[%clk 0:01:25]}  Qd6 {[%clk 0:00:34]} 44. Qa7+ {[%clk 0:01:24]}  Kf8 {[%clk 0:00:35]} 45. Qa8+ {[%clk 0:01:23]}  Kg7 {[%clk 0:00:34]} 46. Qa7 {[%clk 0:01:23]}  Ne6 {[%clk 0:00:33]} 47. Qb7 {[%clk 0:01:19]}  Nd8 {[%clk 0:00:32]} 48. Qc8 {[%clk 0:01:17]}  Ne6 {[%clk 0:00:32]} 49. Qc2 {[%clk 0:01:09]}  Nc5 {[%clk 0:00:32]} 50. Be2 {[%clk 0:01:07]}  Kf8 {[%clk 0:00:32]} 51. Qc3 {[%clk 0:01:06]}  Ke7 {[%clk 0:00:32]} 52. f4 {[%clk 0:01:03]}  Ne6 {[%clk 0:00:25]} 53. Bf3 {[%clk 0:01:03]}  Qc5 {[%clk 0:00:25]} 54. Qb2 {[%clk 0:00:59]}  a5 {[%clk 0:00:24]} 55. Qh8 {[%clk 0:00:56]}  b4 {[%clk 0:00:24]} 56. Qa8 {[%clk 0:00:56]}  Nc7 {[%clk 0:00:24]} 57. Qb7 {[%clk 0:00:55]}  a4 {[%clk 0:00:25]} 58. Bc6 {[%clk 0:00:54]}  Kd6 {[%clk 0:00:24]} 59. Bxa4 {[%clk 0:00:54]}  Qd5+ {[%clk 0:00:23]} 60. Qxd5+ {[%clk 0:00:54]}  Nxd5 {[%clk 0:00:23]} 61. Bb3 {[%clk 0:00:55]}  f5 {[%clk 0:00:21]} 62. Kf3 {[%clk 0:00:51]}  Nc3 {[%clk 0:00:18]} 63. Bf7 {[%clk 0:00:49]}  Ke7 {[%clk 0:00:19]} 64. Bxg6 {[%clk 0:00:47]}  Nxa2 {[%clk 0:00:19]} 65. Bxf5 {[%clk 0:00:47]}  b3 {[%clk 0:00:20]} 66. Ke2 {[%clk 0:00:46]}  b2 {[%clk 0:00:17]} 67. Kd2 {[%clk 0:00:46]}  Nb4 {[%clk 0:00:15]} 68. Bb1 {[%clk 0:00:46]}  Kd6 {[%clk 0:00:12]} 69. Kc3 {[%clk 0:00:46]}  Nd5+ {[%clk 0:00:12]} 70. Kxb2 {[%clk 0:00:46]}  Nf6 {[%clk 0:00:13]} 71. Bf5 {[%clk 0:00:45]}  Kd5 {[%clk 0:00:12]} 72. Kc3 {[%clk 0:00:45]} 1-0


[Site "https://www.chess.com"]

[Event "Titled Tuesday Blitz June 14 Early 2022"]
[White "Livaic, Leon"]
[Black "Djokic, Mihailo"]
[WhiteFideId "14531534"]
[BlackFideId "976440"]
[WhiteElo "2540"]
[BlackElo "2255"]
[Result "1-0"]
[Round "03"]
[TimeControl "180+1"]
[Date "2022.06.14"]
[WhiteClock "0:01:46"]
[BlackClock "0:01:01"]

1. d4 {[%clk 0:03:00]}  Nf6 {[%clk 0:03:00]} 2. c4 {[%clk 0:03:01]}  g6 {[%clk 0:02:57]} 3. Nc3 {[%clk 0:03:01]}  Bg7 {[%clk 0:02:55]} 4. e4 {[%clk 0:03:01]}  d6 {[%clk 0:02:56]} 5. h3 {[%clk 0:03:02]}  O-O {[%clk 0:02:57]} 6. Be3 {[%clk 0:03:02]}  Na6 {[%clk 0:02:53]} 7. g4 {[%clk 0:03:02]}  e5 {[%clk 0:02:51]} 8. d5 {[%clk 0:03:02]}  Nc5 {[%clk 0:02:50]} 9. f3 {[%clk 0:03:03]}  a5 {[%clk 0:02:50]} 10. Qd2 {[%clk 0:03:03]}  a4 {[%clk 0:02:44]} 11. Nge2 {[%clk 0:03:03]}  c6 {[%clk 0:02:40]} 12. Ng3 {[%clk 0:03:03]}  cxd5 {[%clk 0:02:39]} 13. cxd5 {[%clk 0:03:04]}  Qa5 {[%clk 0:02:39]} 14. Nb5 {[%clk 0:03:05]}  Qd8 {[%clk 0:02:32]} 15. Rc1 {[%clk 0:03:03]}  b6 {[%clk 0:02:31]} 16. h4 {[%clk 0:02:57]}  h5 {[%clk 0:02:28]} 17. gxh5 {[%clk 0:02:55]}  Nxh5 {[%clk 0:02:24]} 18. Nxh5 {[%clk 0:02:56]}  gxh5 {[%clk 0:02:24]} 19. Bh6 {[%clk 0:02:42]}  Kh7 {[%clk 0:02:15]} 20. Bxg7 {[%clk 0:02:42]}  Kxg7 {[%clk 0:02:16]} 21. Rg1+ {[%clk 0:02:41]}  Kh7 {[%clk 0:02:17]} 22. Rg5 {[%clk 0:02:41]}  Rh8 {[%clk 0:01:59]} 23. Qg2 {[%clk 0:02:30]}  Kh6 {[%clk 0:01:54]} 24. Nxd6 {[%clk 0:02:30]}  Rh7 {[%clk 0:01:19]} 25. Be2 {[%clk 0:01:54]}  Qf6 {[%clk 0:01:02]} 26. f4 {[%clk 0:01:47]}  Bg4 {[%clk 0:01:01]} 27. Bxg4 {[%clk 0:01:46]}  hxg4 {[%clk 0:01:01]} 28. Nf5+ {[%clk 0:01:46]} 1-0


[Site "https://www.chess.com"]

[Event "Titled Tuesday Blitz June 14 Early 2022"]
[White "Morefield, Jason"]
[Black "Adla, Diego"]
[WhiteFideId "30920825"]
[BlackFideId "100072"]
[WhiteElo "2171"]
[BlackElo "2377"]
[Result "1-0"]
[Round "03"]
[TimeControl "180+1"]
[Date "2022.06.14"]
[WhiteClock "0:00:16"]
[BlackClock "0:00:56"]

1. e4 {[%clk 0:03:00]}  e5 {[%clk 0:02:58]} 2. Nf3 {[%clk 0:03:00]}  Nc6 {[%clk 0:02:59]} 3. Bc4 {[%clk 0:02:58]}  Nf6 {[%clk 0:02:59]} 4. d3 {[%clk 0:02:58]}  Bc5 {[%clk 0:02:59]} 5. c3 {[%clk 0:02:57]}  O-O {[%clk 0:03:00]} 6. O-O {[%clk 0:02:57]}  d6 {[%clk 0:03:00]} 7. h3 {[%clk 0:02:57]}  a5 {[%clk 0:03:00]} 8. a4 {[%clk 0:02:56]}  h6 {[%clk 0:03:00]} 9. Re1 {[%clk 0:02:54]}  Ba7 {[%clk 0:02:52]} 10. Na3 {[%clk 0:02:50]}  Ne7 {[%clk 0:02:52]} 11. d4 {[%clk 0:02:44]}  Ng6 {[%clk 0:02:51]} 12. Bf1 {[%clk 0:02:37]}  Re8 {[%clk 0:02:34]} 13. Qc2 {[%clk 0:02:25]}  c6 {[%clk 0:02:26]} 14. b3 {[%clk 0:02:13]}  d5 {[%clk 0:02:21]} 15. exd5 {[%clk 0:01:56]}  e4 {[%clk 0:02:21]} 16. Nh2 {[%clk 0:01:55]}  cxd5 {[%clk 0:02:21]} 17. Nb5 {[%clk 0:01:52]}  Bb8 {[%clk 0:02:18]} 18. c4 {[%clk 0:01:43]}  Be6 {[%clk 0:02:05]} 19. Be3 {[%clk 0:01:28]}  Ra6 {[%clk 0:02:03]} 20. Be2 {[%clk 0:01:16]}  Rc6 {[%clk 0:02:03]} 21. c5 {[%clk 0:01:15]}  Qc8 {[%clk 0:02:00]} 22. Bf1 {[%clk 0:01:01]}  Nh4 {[%clk 0:01:52]} 23. Qd2 {[%clk 0:00:50]}  Kh7 {[%clk 0:01:44]} 24. Bf4 {[%clk 0:00:47]}  Nh5 {[%clk 0:01:42]} 25. Bxb8 {[%clk 0:00:46]}  Qxb8 {[%clk 0:01:43]} 26. Nd6 {[%clk 0:00:40]}  Rxd6 {[%clk 0:01:38]} 27. cxd6 {[%clk 0:00:41]}  Qxd6 {[%clk 0:01:38]} 28. Qxa5 {[%clk 0:00:32]}  f5 {[%clk 0:01:21]} 29. Rac1 {[%clk 0:00:29]}  f4 {[%clk 0:01:21]} 30. Qc7 {[%clk 0:00:29]}  Qf8 {[%clk 0:01:20]} 31. Ng4 {[%clk 0:00:24]}  f3 {[%clk 0:01:17]} 32. g3 {[%clk 0:00:23]}  Bxg4 {[%clk 0:01:17]} 33. hxg4 {[%clk 0:00:23]}  Re7 {[%clk 0:01:12]} 34. Qd6 {[%clk 0:00:18]}  e3 {[%clk 0:00:56]} 35. Rxe3 {[%clk 0:00:16]} 1-0


[Site "https://www.chess.com"]

[Event "Titled Tuesday Blitz June 14 Early 2022"]
[White "Narayanan, Srinath"]
[Black "Lazavik, Denis"]
[WhiteFideId "5018420"]
[BlackFideId "13515110"]
[WhiteElo "2472"]
[BlackElo "2437"]
[Result "1-0"]
[Round "03"]
[TimeControl "180+1"]
[Date "2022.06.14"]
[WhiteClock "0:00:08"]
[BlackClock "0:00:10"]

1. d4 {[%clk 0:03:00]}  Nf6 {[%clk 0:02:59]} 2. Nc3 {[%clk 0:02:59]}  d5 {[%clk 0:02:58]} 3. Bf4 {[%clk 0:03:00]}  a6 {[%clk 0:02:58]} 4. e3 {[%clk 0:03:00]}  e6 {[%clk 0:02:55]} 5. Bd3 {[%clk 0:02:58]}  c5 {[%clk 0:02:54]} 6. Nf3 {[%clk 0:02:56]}  b5 {[%clk 0:02:54]} 7. Ne5 {[%clk 0:02:49]}  Bb7 {[%clk 0:02:52]} 8. h4 {[%clk 0:02:48]}  Nbd7 {[%clk 0:02:29]} 9. h5 {[%clk 0:02:48]}  c4 {[%clk 0:02:20]} 10. Be2 {[%clk 0:02:47]}  h6 {[%clk 0:02:09]} 11. a3 {[%clk 0:02:18]}  Nxe5 {[%clk 0:02:08]} 12. Bxe5 {[%clk 0:02:19]}  Nd7 {[%clk 0:02:08]} 13. Bf4 {[%clk 0:02:19]}  Qb6 {[%clk 0:02:07]} 14. Bf3 {[%clk 0:02:03]}  Nf6 {[%clk 0:02:00]} 15. Ne2 {[%clk 0:02:00]}  Be7 {[%clk 0:01:58]} 16. Kf1 {[%clk 0:01:36]}  a5 {[%clk 0:01:56]} 17. g4 {[%clk 0:01:36]}  Kd7 {[%clk 0:01:43]} 18. Kg2 {[%clk 0:01:30]}  b4 {[%clk 0:01:39]} 19. axb4 {[%clk 0:01:12]}  axb4 {[%clk 0:01:38]} 20. b3 {[%clk 0:01:06]}  c3 {[%clk 0:01:32]} 21. Ng3 {[%clk 0:00:59]}  Ne4 {[%clk 0:01:18]} 22. Nxe4 {[%clk 0:00:54]}  dxe4 {[%clk 0:01:18]} 23. Be2 {[%clk 0:00:55]}  Bd5 {[%clk 0:01:17]} 24. Bc4 {[%clk 0:00:38]}  Rxa1 {[%clk 0:01:12]} 25. Qxa1 {[%clk 0:00:38]}  Ra8 {[%clk 0:01:11]} 26. Qf1 {[%clk 0:00:39]}  Ke8 {[%clk 0:00:56]} 27. Qe2 {[%clk 0:00:34]}  Bxc4 {[%clk 0:00:52]} 28. Qxc4 {[%clk 0:00:34]}  Qa6 {[%clk 0:00:49]} 29. Qc7 {[%clk 0:00:30]}  f6 {[%clk 0:00:41]} 30. Bg3 {[%clk 0:00:23]}  Rc8 {[%clk 0:00:19]} 31. Ra1 {[%clk 0:00:22]}  Qc6 {[%clk 0:00:08]} 32. Qa7 {[%clk 0:00:16]}  Qd7 {[%clk 0:00:05]} 33. Qb6 {[%clk 0:00:14]}  Qc6 {[%clk 0:00:05]} 34. Qa5 {[%clk 0:00:11]}  Qd5 {[%clk 0:00:03]} 35. Qxd5 {[%clk 0:00:07]}  exd5 {[%clk 0:00:04]} 36. Ra5 {[%clk 0:00:08]}  Rd8 {[%clk 0:00:04]} 37. f3 {[%clk 0:00:06]}  exf3+ {[%clk 0:00:01]} 38. Kxf3 {[%clk 0:00:07]}  Rd7 {[%clk 0:00:02]} 39. e4 {[%clk 0:00:07]}  dxe4+ {[%clk 0:00:03]} 40. Kxe4 {[%clk 0:00:08]}  Kf7 {[%clk 0:00:04]} 41. d5 {[%clk 0:00:08]}  Bd8 {[%clk 0:00:04]} 42. Ra6 {[%clk 0:00:08]}  Re7+ {[%clk 0:00:03]} 43. Kd3 {[%clk 0:00:09]}  Rd7 {[%clk 0:00:03]} 44. d6 {[%clk 0:00:09]}  Ke6 {[%clk 0:00:03]} 45. Kc4 {[%clk 0:00:09]}  Rb7 {[%clk 0:00:04]} 46. Ra4 {[%clk 0:00:04]}  Rb8 {[%clk 0:00:01]} 47. Rxb4 {[%clk 0:00:04]}  Rc8+ {[%clk 0:00:02]} 48. Kd3 {[%clk 0:00:04]}  Ra8 {[%clk 0:00:02]} 49. Rb7 {[%clk 0:00:04]}  f5 {[%clk 0:00:01]} 50. gxf5+ {[%clk 0:00:03]}  Kxf5 {[%clk 0:00:02]} 51. Rxg7 {[%clk 0:00:04]}  Bg5 {[%clk 0:00:03]} 52. Rg6 {[%clk 0:00:02]}  Ra1 {[%clk 0:00:02]} 53. Kxc3 {[%clk 0:00:02]}  Rg1 {[%clk 0:00:03]} 54. Bf2 {[%clk 0:00:02]}  Rg2 {[%clk 0:00:03]} 55. Bd4 {[%clk 0:00:02]}  Rg3+ {[%clk 0:00:03]} 56. Kc4 {[%clk 0:00:03]}  Rg2 {[%clk 0:00:04]} 57. c3 {[%clk 0:00:03]}  Rd2 {[%clk 0:00:02]} 58. d7 {[%clk 0:00:03]}  Bd8 {[%clk 0:00:03]} 59. Rg8 {[%clk 0:00:04]}  Bh4 {[%clk 0:00:03]} 60. d8=Q {[%clk 0:00:04]}  Bxd8 {[%clk 0:00:04]} 61. Rxd8 {[%clk 0:00:04]}  Kg4 {[%clk 0:00:05]} 62. Rd5 {[%clk 0:00:05]}  Rb2 {[%clk 0:00:05]} 63. b4 {[%clk 0:00:05]}  Rb1 {[%clk 0:00:05]} 64. b5 {[%clk 0:00:06]}  Ra1 {[%clk 0:00:06]} 65. b6 {[%clk 0:00:06]}  Ra4+ {[%clk 0:00:07]} 66. Kb3 {[%clk 0:00:07]}  Ra1 {[%clk 0:00:08]} 67. Rb5 {[%clk 0:00:07]}  Rb1+ {[%clk 0:00:09]} 68. Kc4 {[%clk 0:00:08]}  Ra1 {[%clk 0:00:10]} 69. b7 {[%clk 0:00:08]} 1-0


[Site "https://www.chess.com"]